Cogmind - Beta 15 @@@ ROGUE MODE // 2025.07.21 @ 09:19:09 Player: FenRhew Result: Destroyed by ZW-SCZ(R) with Subdweller Beam Cannon Performance ------------- Evolutions (0) 0 Regions Visited (3) 600 Robots Destroyed (14) 70 Value Destroyed (538) 538 Prototype IDs (0) 0 Alien Tech Used (0) 0 Bonus (0) 0 TOTAL SCORE: 1208 Bonus ------- None Cogmind --------- Core Integrity 0/250 Matter 101/300 Energy 246/250 System Corruption 0% Temperature Cool (11) Movement Walking (190) Ox1 Location -10/Subcaves Parts ------- > --- POWER (1) -------- Ion Engine > --- PROPULSION (2) --- Aluminum Leg Aluminum Leg > --- UTILITY (2) ------ Large Storage Unit Signal Interpreter > --- WEAPON (2) ------- Light Assault Rifle Grenade Launcher > --- INVENTORY (15) --- Ion Engine Light Ion Engine Wheel Heat Sink Small Storage Unit High-capacity Matter Pod (200) Experimental Sensor Array Seismic Detector Utility Shielding Medium Laser Light Assault Rifle Subdweller Machine Gun Battle Cannon Blade Trap Peak State ------------ > --- POWER ------------ Ion Engine > --- PROPULSION ------- Aluminum Leg Aluminum Leg > --- UTILITY ---------- Heat Sink Large Storage Unit > --- WEAPON ----------- Light Assault Rifle Light Assault Rifle > --- INVENTORY -------- Ion Engine Light Ion Engine Aluminum Leg Aluminum Leg Wheel Small Storage Unit High-capacity Matter Pod Experimental Sensor Array Signal Interpreter Utility Shielding Medium Laser Grenade Launcher [Rating: 9] Favorites ----------- Power Ion Engine Engine Ion Engine Propulsion Aluminum Leg Treads Light Treads Leg Aluminum Leg Utility Large Storage Unit Device Heat Sink Storage Large Storage Unit Processor Signal Interpreter Weapon Light Assault Rifle Ballistic Gun Light Assault Rifle Launcher Grenade Launcher Build | -11 -10 -10 -10 ------- Run | Yrd Mat Min Sub Slots Evolved . | . . . . Power . | . . . . Propulsion . | . . . . Utility . | . . . . Weapon . | . . . . Parts Attached 15 | 6 5 . 4 Power 2 | 1 1 . . Engine 2 | 1 1 . . Core . | . . . . Reactor . | . . . . Propulsion 6 | 2 2 . 2 Treads 2 | 2 . . . Leg 4 | . 2 . 2 Wheel . | . . . . Hover . | . . . . Flight . | . . . . Utility 4 | 1 2 . 1 Device 1 | . 1 . . Storage 2 | 1 1 . . Processor 1 | . . . 1 Hackware . | . . . . Protection . | . . . . Artifact . | . . . . Weapon 3 | 2 . . 1 Energy Gun . | . . . . Energy Cannon . | . . . . Ballistic Gun 2 | 2 . . . Ballistic Cannon . | . . . . Launcher 1 | . . . 1 Special Weapon . | . . . . Impact Weapon . | . . . . Slashing Weapon . | . . . . Piercing Weapon . | . . . . Special Melee Weapon . | . . . . Unidentified Prototypes . | . . . . Parts Lost 3 | . 1 . 2 Power . | . . . . Propulsion 3 | . 1 . 2 Utility . | . . . . Weapon . | . . . . Highest Loss Streak 1 | . 1 . 1 To Critical Strikes . | . . . . Average Backups 11 | 2 7 11 13 Power 1 | . 1 2 2 Propulsion 2 | 1 3 3 2 Utility 4 | . 1 4 6 Weapon 2 | . 1 2 2 Tool/Special . | . . . . Unused Backups 9 | . . . 9 Power 1 | . . . 1 Propulsion 1 | . . . 1 Utility 4 | . . . 4 Weapon 3 | . . . 3 Tool/Special . | . . . . Average Slot Usage (%) 99 | . 98 100 99 Engine 14 | . 14 14 14 Treads 5 | . 25 . . Leg 21 | . 2 28 27 Device 8 | . 13 14 5 Storage 14 | . 14 14 14 Processor 5 | . . . 8 Ballistic Gun 22 | . 28 28 18 Launcher 5 | . . . 9 Peak Build Rating 9 | 6 8 9 9 Average Rating 8 | 5 7 8 8 On Entrance 5 | . 6 8 9 Naked Turns . | . . . . Heaviest Build 30 | 12 28 28 30 Greatest Support 40 | 40 40 20 20 Greatest Overweight (x) 1 | . 1 1 1 Average Overweight (x) . | . . 1 1 Largest Inventory Capacity 15 | 8 15 15 15 Average Capacity 13 | 7 9 15 15 Most Carried 15 | 5 11 15 15 Average Carried 12 | 3 8 12 14 Final Capacity 15 | 8 15 15 15 Final Carried 15 | 5 10 15 14 Class Distribution -------------------- 100% | Mutant Dominant Class ---------------- Mutant | -10/Materials Mutant | -10/Mines Mutant | -10/Subcaves Resources | -11 -10 -10 -10 ----------- Run | Yrd Mat Min Sub Matter Collected 721 | 183 336 35 167 Remotely . | . . . . Salvage Created 540 | . 277 . 263 Parts 32 | . 16 . 16 Haulers Intercepted . | . . . . Recyclers Shooed . | . . . . Parts Field Recycled . | . . . . Retrieved Matter . | . . . . Parts Self-Destructed 9 | . . . 9 Prevented . | . . . . Kills | -11 -10 -10 -10 ------- Run | Yrd Mat Min Sub Combat Hostiles Destroyed 14 | . 6 . 8 Guns 8 | . 6 . 2 AOE 6 | . . . 6 Classes Destroyed 2 | . 1 . 1 Grunt 8 | . 6 . 2 Subdweller 6 | . . . 6 Best Kill Streak 3 | . 3 . 2 Combat Bots Only 3 | . 3 . 2 Max Kills in Single Turn 1 | . 1 . 1 Gunslinging . | . . . . Exploded 1 | . . . 1 Melee . | . . . . Uniques/NPCs Destroyed . | . . . . Combat | -11 -10 -10 -10 -------- Run | Yrd Mat Min Sub Hostile Shots Fired 94 | . 48 . 46 Missed 29 | . 11 . 18 Hits 65 | . 37 . 28 Projectile 65 | . 37 . 28 Critical Strikes 2 | . 1 . 1 Damage Taken 1063 | . 444 . 619 Core 269 | . 54 . 215 Absorbed by Shields . | . . . . Core Remaining (%) 100 | 100 . . . Volleys Fired 89 | . 42 . 47 Largest 2 | . 2 . 2 Hottest 50 | . 40 . 50 Shots Fired 176 | . 84 . 92 Gun 155 | . 84 . 71 Cannon . | . . . . Launcher 21 | . . . 21 Special . | . . . . Kinetic 155 | . 84 . 71 Thermal . | . . . . Explosive 21 | . . . 21 Electromagnetic . | . . . . Robot Hit Streak 13 | . 7 . 13 Robot Miss Streak 3 | . 3 . 3 Penetration Max . | . . . . Secondary Targets . | . . . . Shots Hit Robots 111 | . 58 . 53 Core Hits 37 | . 19 . 18 Critical Kills 2 | . 1 . 1 Critical Parts Destroyed . | . . . . Critical Strikes 2 | . 1 . 1 Destroy 2 | . 1 . 1 Melee Attacks . | . . . . Impact . | . . . . Slashing . | . . . . Piercing . | . . . . Sneak Attacks . | . . . . Combat Hostiles . | . . . . Follow-up Attacks . | . . . . Damage Inflicted 1423 | . 486 . 937 Guns 778 | . 486 . 292 Cannons . | . . . . Explosions 645 | . . . 645 Melee . | . . . . Ramming . | . . . . Kinetic 778 | . 486 . 292 Thermal . | . . . . Explosive 645 | . . . 645 Electromagnetic . | . . . . Impact . | . . . . Slashing . | . . . . Piercing . | . . . . Highest Corruption . | . . . . Average Corruption . | . . . . Corruption Purged . | . . . . Corruption Blocked . | . . . . Overload Shots . | . . . . Overflow Damage 11 | . . . 11 Projectiles . | . . . . Explosions 11 | . . . 11 Melee . | . . . . Knockbacks . | . . . . Impact . | . . . . Kinetic . | . . . . Secondary . | . . . . Self-Inflicted Damage 26 | . . . 26 Shots 2 | . . . 2 Rammed . | . . . . Targets Rammed . | . . . . Kicked . | . . . . Crushed . | . . . . Highest Temperature 5 | . 5 . . Average Temperature 3 | . 3 . . Received Heat Transfer 399 | . 267 . 132 Siege Activations . | . . . . Martial Activations . | . . . . Shielding Activations . | . . . . Robots Disrupted . | . . . . Combat Hostiles . | . . . . Robots Corrupted . | . . . . Combat Hostiles . | . . . . Parts Fried . | . . . . Impact Corruptions . | . . . . Robots Melted . | . . . . Combat Hostiles . | . . . . Parts Melted . | . . . . Heat Transferred . | . . . . Parts Sabotaged . | . . . . Parts Stolen . | . . . . Parts Stripped . | . . . . Power Chain Reactions . | . . . . Alert | -11 -10 -10 -10 ------- Run | Yrd Mat Min Sub Maximum Alert Level . | . . . . Low Security (%) 100 | 100 100 100 . Level 1 . | . . . . Level 2 . | . . . . Level 3 . | . . . . Level 4 . | . . . . Level 5 . | . . . . High Security . | . . . . Max Security . | . . . . Peak Influence 70 | . 70 6 . Initial 6 | . . 6 . Average 8 | . 14 . . Influence Increases 190 | . 140 . 50 Destroy 0b10 Robot/C 160 | . 120 . 40 Destroy Leader 30 | . 20 . 10 Influence Decreases 190 | . 124 16 50 Entered New Map 10 | . . 10 . Time Decay 160 | . 114 6 40 Lost Part 20 | . 10 . 10 Squads Dispatched 3 | . 3 . . Investigation 2 | . 2 . . Extermination . | . . . . Reinforcement 1 | . 1 . . Assault . | . . . . Garrison . | . . . . Intercept . | . . . . Searches Triggered . | . . . . Construction Impeded . | . . . . Haulers Reinforced . | . . . . Active Scanning Responses . | . . . . Cargo Convoy Interrupts . | . . . . Stealth | -11 -10 -10 -10 --------- Run | Yrd Mat Min Sub Distress Signals . | . . . . Communications Jammed . | . . . . Distress Signals . | . . . . Times Spotted 15 | . 6 . 9 Peak Tracking Total 3 | . 3 . 2 Tactical Retreats . | . . . . Traps | -11 -10 -10 -10 ------- Run | Yrd Mat Min Sub Traps Triggered 1 | . 1 . . Indirectly . | . . . . Trap Hack Attempts . | . . . . Triggered . | . . . . Disarmed . | . . . . Reprogrammed . | . . . . Reused . | . . . . Traps Extracted . | . . . . Installed . | . . . . Triggered . | . . . . Most Traps Carried 2 | . . 2 2 Machines | -11 -10 -10 -10 ---------- Run | Yrd Mat Min Sub Machines Disabled . | . . . . Max in Single Turn . | . . . . Machines Repaired . | . . . . Machines Dismantled . | . . . . Machines Sabotaged . | . . . . Overloaded Fab Kills . | . . . . Hacking | -11 -10 -10 -10 --------- Run | Yrd Mat Min Sub Machines Accessed 1 | . 1 . . Terminals 1 | . 1 . . Fabricators . | . . . . Repair Stations . | . . . . Recycling Units . | . . . . Scanalyzers . | . . . . Garrison Access . | . . . . Total Hacks 3 | . 3 . . Successful . | . . . . Failed 3 | . 3 . . Catastrophic 1 | . 1 . . Database Lockouts . | . . . . Manual 3 | . 3 . . Terminals 3 | . 3 . . Fabricators . | . . . . Repair Stations . | . . . . Recycling Units . | . . . . Scanalyzers . | . . . . Garrison Access . | . . . . Terminal Hacks . | . . . . Fabricator Hacks . | . . . . Repair Station Hacks . | . . . . Recycling Unit Hacks . | . . . . Scanalyzer . | . . . . Garrison Access Hacks . | . . . . Unauthorized Hacks . | . . . . Terminals . | . . . . Fabricators . | . . . . Repair Stations . | . . . . Recycling Units . | . . . . Scanalyzers . | . . . . Garrison Access . | . . . . Data Cores Recovered . | . . . . Used . | . . . . Hacking Detections 1 | . 1 . . Full Trace Events 1 | . 1 . . Feedback Events . | . . . . Feedback Blocked . | . . . . Robot Schematics Acquired . | . . . . Robots Built . | . . . . Authchips . | . . . . Time . | . . . . Total Robot Build Rating . | . . . . Part Schematics Acquired . | . . . . Parts Built . | . . . . Authchips . | . . . . Time . | . . . . Total Part Build Rating . | . . . . Parts Repaired . | . . . . Time . | . . . . Parts Recycled . | . . . . Recycled Matter . | . . . . Retrieved Matter . | . . . . Retrieved Components . | . . . . Parts Scanalyzed . | . . . . Part Schematics Acquired . | . . . . Parts Damaged . | . . . . Bothacking | -11 -10 -10 -10 ------------ Run | Yrd Mat Min Sub Used RIF Installer . | . . . . Robots Hacked . | . . . . Non-combat . | . . . . Combat . | . . . . Robot Hacks Applied . | . . . . Relay Couplers Released . | . . . . Fabnet Peak Effective % . | . . . . Robots Rewired . | . . . . Allies Hacked . | . . . . Hacks Repelled . | . . . . Allies | -11 -10 -10 -10 -------- Run | Yrd Mat Min Sub Total Allies . | . . . . Largest Group . | . . . . Highest-Rated Group . | . . . . Highest-Rated Ally . | . . . . Total Orders . | . . . . Ally Attacks . | . . . . Total Damage . | . . . . Kills . | . . . . Allies Corrupted . | . . . . Allies Melted . | . . . . Intel | -11 -10 -10 -10 ------- Run | Yrd Mat Min Sub Active Infowar (turns) . | . . . . Robot Analysis Total . | . . . . Derelict Logs Recovered 2 | . . . 2 Drone Launches . | . . . . Drone Recoveries . | . . . . Exploration | -11 -10 -10 -10 ------------- Run | Yrd Mat Min Sub Turns Passed 2477 | 93 559 322 1503 Spaces Moved 1186 | 52 263 158 713 Core 3 | 3 . . . Treads 293 | 49 244 . . Legs 890 | . 19 158 713 Wheels . | . . . . Hover . | . . . . Flight . | . . . . Fastest Speed 50 | 50 160 190 190 Average Speed 182 | 153 162 190 190 Slowest Speed 190 | 160 190 190 190 Overloaded Moves . | . . . . Propulsion Burnouts . | . . . . Robots Hopped . | . . . . Potential Cave-ins . | . . . . Cave-ins Triggered . | . . . . Exploration Rate (%) 37 | 4 50 47 50 Regions Visited 3 Branch Regions 2 Pre-discovered Areas 1 | . . . 1 Known Exits Taken . | . . . . Unknown Exits Taken 3 | 1 1 1 . Scrap Searched 1 | . . 1 . Spaces Dug . | . . . . Terrain Destroyed 92 | . . . 92 Melee . | . . . . Projectile . | . . . . AOE 92 | . . . 92 Terrain Rammed . | . . . . Walls Destroyed . | . . . . Machines Disabled . | . . . . Actions | -11 -10 -10 -10 --------- Run | Yrd Mat Min Sub Total 1353 | 62 328 180 783 Wait 43 | . 11 18 14 Move 1183 | 51 262 157 713 Hop . | . . . . Pick Up 18 | 5 6 5 2 Fast Attach 7 | 6 1 . . Attach 3 | . 1 . 2 Detach . | . . . . Swap 7 | . 3 . 4 Drop 3 | . 2 . 1 Fire 89 | . 42 . 47 Melee . | . . . . Ram . | . . . . Kick . | . . . . Crush . | . . . . Escape Stasis . | . . . . Rewire . | . . . . Trap . | . . . . Miscellaneous . | . . . . Route ------- -11/Scrapyard -10/Materials (discovered 2 exits: [*Mat] / [*Min]) -10/Mines -10/Subcaves (discovered 2 exits: *Mat x2) History --------- Turn | Location | Event 2 | -11/Scrapyard | Discovered new exit (range 16) 94 | -11/Scrapyard | Entered Materials 199 | -10/Materials | Met 8R-AWN 263 | -10/Materials | Discovered new exit (range 15) 313 | -10/Materials | Build established: Mutant 447 | -10/Materials | Discovered new exit (range 15) 653 | -10/Materials | Entered Mines 654 | -10/Mines | Followed 8R-AWN into the Mines 731 | -10/Mines | Found a damaged Exp. Sensor Array with a note attached 734 | -10/Mines | Found Prototype Device 834 | -10/Mines | Discovered new exit (range 3) 870 | -10/Mines | Found a hidden stash of uninstalled traps 975 | -10/Mines | Entered Subcaves 976 | -10/Subcaves | Approached by a straggling Scientist 1167 | -10/Subcaves | A swath of the cavern ceiling suddenly collapsed 1237 | -10/Subcaves | A swath of the cavern ceiling suddenly collapsed 1479 | -10/Subcaves | Discovered new exit (range 15) 1590 | -10/Subcaves | Identified exit to Materials 1656 | -10/Subcaves | Core integrity fell below 50% 1909 | -10/Subcaves | Shifting Twisted Machinery released Battle Cannon 1996 | -10/Subcaves | Discovered exit to Materials (range 12) 2136 | -10/Subcaves | Learned location of Storage (-8) 2227 | -10/Subcaves | Core integrity fell below 20% 2414 | -10/Subcaves | Shifting Twisted Machinery released Flamer 2436 | -10/Subcaves | Shifting Twisted Machinery released Riot Gun 2478 | -10/Subcaves | Destroyed by ZW-SCZ(R) with Subdweller Beam Cannon Last Messages --------------- World map updated: -8/Storage. 02185_ BP-RN8(u) deconstructs Twisted Machinery. 02214_ G-34 Mercenary destroyed. 02222_ Aluminum Leg destroyed. 02223_ Destroyed Imp. Heat Sink. 02223_ BP-RN8(u) deconstructs Twisted Machinery. 02225_ Ion Engine fries itself beyond repair. 02225_ Sml. Laser fries itself beyond repair. 02228_ G-47 Trooper destroyed. 02233_ The unstable cave ceiling collapses. 02236_ Aluminum Leg fries itself beyond repair. 02237_ The unstable cave ceiling collapses. 02240_ Acquired 11 matter. 02243_ Particle Gun fries itself beyond repair. 02403_ The unstable cave ceiling collapses. Flamer falls loose from the Twisted Machinery. Riot Gun falls loose from the Twisted Machinery. 02468_ I4-T9X(R) destroyed. 02473_ ZW-SCZ(R) affixes Scrap Shield Fragment to Scrap Shield. Map ----- +----------------------------------------------------+ | | | | | ?????????????????????????????????????????????????? | | ?????????????????????????????????????????????????? | | ?????????????????????????????????????????????????? | | ?????????????????????????????????????????????????? | | ?????????????????????????????????????????????????? | | ?????????????????????????????????????????????????? | | ?????????????????????????????????????????????????? | | ?????????????????????????????????????????????????? | | ?????????????????????????????????????????????????? | | ?????????????????????????????????????????????????? | | ?????????????????????????????????????????????????? | | ?????????????????????????????????????????????????? | | ?????????????????????????????????????????????????? | | ?????????????????????????????????????????????????? | | ????###?????????####?????????????????????????????? | | #???# ###?????### ##???????????????????????????? | | ##### ###???# "##??????????????????????????? | | #???# "#????###???????????????????? | | #???# #????# ####????????????????? | | #???## ### ###### ##???????????????? | | ### #????????# ## " #???????????????? | | #?# ##?######## # [ #???????????????? | | #### ###### # " ### #???????????? | | ######### ## @ "" " #??????????? | | #??#### ## """ #???????????? | | #### ### |""""" ##???????????? | | #### """##??????????????? | | ## ##?# """"??????????????? | | #### ##??### "" ""?????????????? | | #??## ##?????## " #??????????????? | | #???## ### ##?#??????# &* #???????????????? | | #????# ###? ##?????? &% #???????????????? | | ##????### ### ##????? !R #???????????????? | | #??### #????? ???????????????? | | ##??# ##?????# ??????????????? | | #???# # #???????# ??????????????? | | # ##???# # # ##??????? ? ??????????????? | | ###???## #???????? ?????????????????? | | ##???## ## #??????????????????????????? | | ##?## #### ##?? #?????????????????????????? | | #?# ##???###????##?????????????????????????? | | " #?# ##??????????????????????????????????????? | | "#?## #####???????????????????????????????????? | | "### #???????????????????????????????????? | | " ##???????????????????????????????????? | | #????????????????????????????????????? | | "" #????????????????????????????????????? | | #????????????????????????????????????? | +----------------------------------------------------+ Best States ------------- Heat Dissipation 35 Energy Generation 10 Energy Capacity 250 Matter Stores 300 Matter Capacity 300 Sight Range 16 Terrain Scan Density 10 Evasion (%) 40 Recoil Reduction 2 Item Schematics ----------------- None Robot Schematics ------------------ None Fabricated ------------ Nothing Repaired ---------- Nothing Alien Tech Used ----------------- None Achievements -------------- None Challenges ------------ None Game ------ Seed SuperdensePhaseSheargun Manual? 0 Play Time 00:14:53 Cumulative 57.2 hours Start 2025.07.21 @ 09:06:08 End 2025.07.21 @ 09:19:09 Sessions 1 Manual Loads 0 Difficulty Rogue Special Mode None Game No. 42 Rogue 42 Adventurer 0 Explorer 0 Win Type - Total 0 Types 0/0/0/0/0/0/0/0/0/0 Lore% 39 Gallery% 43 Achievement% 37 Wizard Run 0 Options --------- Layout 1 ASCII 0 Keyboard 0 Movement Numpad Keybinds 0 Fullscreen 1 Font 24/Smallcaps Map View 50x35 Zoom Use 0% Tactical HUD 1 Map Filters NONE Filters NONE Steam 1 RUN: bbb6b9d9-cda6-44b3-ac22-2321481efbe1